[Event "1st Sivas Buruciye Open 2019"]
[Site "Sivas"]
[Date "2019.08.20"]
[Round "3"]
[White "Can, Ilhan"]
[Black "Khvadagiani, Nika"]
[Result "0-1"]
[ECO "B31"]
[WhiteElo "1683"]
[BlackElo "1880"]
[Annotator "NA"]
[PlyCount "96"]
[EventDate "2019.08.19"]
[EventType "swiss"]
[EventCountry "TUR"]
[SourceTitle "playchess.com"]
[Source "ChessBase"]
[SourceQuality "1"]
[TimeControl "5400+30"]

1. e4 {[%emt 0:00:30]} c5 {[%emt 0:05:30]} 2. Nf3 {[%emt 0:00:30]} Nc6 {[%emt 0:00:30]} 3. Bb5 {[%emt 0:00:30]} g6 {[%emt 0:00:00]} 4. O-O {[%emt 0:01:30]} Bg7 {[%emt 0:01:00]} 5. d3 {[%emt 0:00:30]} e5 {[%emt 0:02:30]} 6. Be3 {[%emt 0:03:30]} Nd4 {[%emt 0:01:30]} 7. Bc4 {[%emt 0:00:30]} d6 {[%emt 0:00:30]} 8. c3 {[%emt 0:00:30]} Ne6 {[%emt 0:05:30]} 9. d4 {[%emt 0:02:30]} cxd4 {[%emt 0:01:30]} 10. cxd4 {[%emt 0:00:30]} Ne7 {[%emt 0:00:00]} 11. Bb5+ {[%emt 0:04:30]} Bd7 {[%emt 0:00:00]} 12. Bxd7+ {[%emt 0:00:30]} Qxd7 {[%emt 0:00:30]} 13. dxe5 {[%emt 0:00:00]} dxe5 {[%emt 0:00:30]} 14. Qxd7+ {[%emt 0:01:00]} Kxd7 {[%emt 0:00:30]} 15. Rd1+ {[%emt 0:00:00]} Kc7 {[%emt 0:00:00]} 16. Na3 {[%emt 0:01:00]} a6 {[%emt 0:01:00]} 17. Nc4 {[%emt 0:01:30]} Nd4 {[%emt 0:03:30]} 18. Ncxe5 {[%emt 0:04:30]} Nxf3+ {[%emt 0:00:30]} 19. Nxf3 {[%emt 0:00:00]} Rad8 {[%emt 0:04:30]} 20. Bf4+ {[%emt 0:01:00]} Kc8 {[%emt 0:00:30]} 21. Ne5 {[%emt 0:03:30]} Bxe5 {[%emt 0:08:30]} 22. Bxe5 {[%emt 0:01:30]} Rhe8 {[%emt 0:00:30]} 23. Bf6 {[%emt 0:01:30]} Rxd1+ {[%emt 0:00:30]} 24. Rxd1 {[%emt 0:00:00]} Ng8 {[%emt 0:00:30]} 25. Bg5 {[%emt 0:10:00]} Rxe4 {[%emt 0:07:30]} 26. f3 {[%emt 0:11:30]} Re8 {[%emt 0:00:30]} 27. Kf2 {[%emt 0:00:30]} f6 {[%emt 0:03:30]} 28. Bf4 {[%emt 0:00:30]} Re6 {[%emt 0:00:30]} 29. Rc1+ {[%emt 0:01:30]} Kd8 {[%emt 0:05:30]} 30. a4 {[%emt 0:01:30]} Ne7 {[%emt 0:00:30]} 31. Rd1+ {[%emt 0:04:30]} Kc8 {[%emt 0:01:30]} 32. b4 {[%emt 0:02:30]} b5 {[%emt 0:04:30]} 33. axb5 {[%emt 0:01:30]} axb5 {[%emt 0:00:00]} 34. Rc1+ {[%emt 0:03:30]} Rc6 {[%emt 0:04:00]} 35. Rxc6+ {[%emt 0:01:30]} Nxc6 {[%emt 0:00:30]} 36. Bd2 {[%emt 0:01:30]} Kd7 {[%emt 0:00:00]} 37. Ke3 {[%emt 0:01:30]} Ke6 {[%emt 0:00:00]} 38. Kd3 {[%emt 0:12:30]} Kd5 {[%emt 0:01:30]} 39. Kc3 {[%emt 0:00:30]} h5 {[%emt 0:04:30]} 40. h4 {[%emt 0:02:30]} Ke5 {[%emt 0:06:30]} 41. Kd3 {[%emt 0:00:30]} f5 {[%emt 0:06:30]} 42. Bc3+ {[%emt 0:03:21]} Kf4 {[%emt 0:01:30]} 43. Be1 {[%emt 0:01:49]} g5 {[%emt 0:09:45]} 44. Bd2+ {[%emt 0:07:32]} Kg3 {[%emt 0:00:06]} 45. hxg5 {[%emt 0:00:50]} Kxg2 {[%emt 0:00:03]} 46. Ke3 {[%emt 0:00:53]} h4 {[%emt 0:00:30]} 47. g6 {[%emt 0:00:35]} Ne7 {[%emt 0:00:04]} 48. g7 {[%emt 0:04:12]} h3 {[%emt 0:00:08]} 0-1

[Event "1st Sivas Buruciye Open 2019"]
[Site "Sivas"]
[Date "2019.08.20"]
[Round "3"]
[White "Duru, Ipek"]
[Black "Demir, Ugur"]
[Result "0-1"]
[ECO "B00"]
[WhiteElo "1659"]
[BlackElo "1790"]
[Annotator "NA"]
[PlyCount "98"]
[EventDate "2019.08.19"]
[EventType "swiss"]
[EventCountry "TUR"]
[SourceTitle "playchess.com"]
[Source "ChessBase"]
[SourceQuality "1"]
[TimeControl "5400+30"]

1. e4 {[%emt 0:00:30]} b6 {[%emt 0:00:30]} 2. d4 {[%emt 0:00:30]} Bb7 {[%emt 0:00:30]} 3. Bd3 {[%emt 0:00:30]} Nf6 {[%emt 0:00:30]} 4. Qe2 {[%emt 0:00:30]} e6 {[%emt 0:00:00]} 5. Nf3 {[%emt 0:00:00]} d5 {[%emt 0:04:00]} 6. e5 {[%emt 0:00:00]} Nfd7 {[%emt 0:00:00]} 7. c3 {[%emt 0:00:00]} c5 {[%emt 0:00:00]} 8. O-O {[%emt 0:00:00]} Be7 {[%emt 0:01:30]} 9. Re1 {[%emt 0:01:30]} Nc6 {[%emt 0:00:30]} 10. Nbd2 {[%emt 0:00:00]} g5 {[%emt 0:04:30]} 11. h3 {[%emt 0:04:00]} Nf8 {[%emt 0:13:30]} 12. Nf1 {[%emt 0:01:30]} Ng6 {[%emt 0:01:30]} 13. Bxg6 {[%emt 0:03:30]} hxg6 {[%emt 0:01:30]} 14. N1h2 {[%emt 0:00:30]} a5 {[%emt 0:12:30]} 15. Be3 {[%emt 0:03:30]} cxd4 {[%emt 0:02:30]} 16. cxd4 {[%emt 0:02:30]} Ba6 {[%emt 0:01:30]} 17. Qd1 {[%emt 0:00:30]} Nb4 {[%emt 0:02:30]} 18. a3 {[%emt 0:05:30]} Nd3 {[%emt 0:05:30]} 19. Re2 {[%emt 0:03:30]} Rc8 {[%emt 0:09:30]} 20. Qd2 {[%emt 0:04:30]} Nc1 {[%emt 0:01:30]} 21. Rxc1 {[%emt 0:02:30]} Rxc1+ {[%emt 0:00:30]} 22. Qxc1 {[%emt 0:00:30]} Bxe2 {[%emt 0:00:00]} 23. Nxg5 {[%emt 0:00:30]} Ba6 {[%emt 0:10:00]} 24. Qc6+ {[%emt 0:04:30]} Kf8 {[%emt 0:02:30]} 25. Nhf3 {[%emt 0:02:30]} Bc8 {[%emt 0:02:30]} 26. h4 {[%emt 0:05:30]} Bd7 {[%emt 0:02:30]} 27. Qc1 {[%emt 0:01:30]} Qc8 {[%emt 0:00:30]} 28. Qd2 {[%emt 0:00:30]} Qc4 {[%emt 0:00:30]} 29. Nh3 {[%emt 0:03:30]} Bb5 {[%emt 0:02:14]} 30. Bh6+ {[%emt 0:06:30]} Ke8 {[%emt 0:02:12]} 31. Qf4 {[%emt 0:04:30]} Qd3 {[%emt 0:01:47]} 32. Kh2 {[%emt 0:03:30]} Qf5 {[%emt 0:00:51]} 33. Qc1 {[%emt 0:00:30]} Kd7 {[%emt 0:00:21]} 34. Ne1 {[%emt 0:01:30]} Bxh4 {[%emt 0:02:29]} 35. Nf3 {[%emt 0:03:30]} Be7 {[%emt 0:01:55]} 36. Qe3 {[%emt 0:01:30]} Qe4 {[%emt 0:02:08]} 37. Qb3 {[%emt 0:01:30]} Qd3 {[%emt 0:00:28]} 38. Qxd3 {[%emt 0:00:30]} Bxd3 {[%emt 0:00:04]} 39. Bd2 {[%emt 0:00:30]} Bf5 {[%emt 0:01:40]} 40. Kg3 {[%emt 0:03:30]} Bxh3 {[%emt 0:02:26]} 41. gxh3 {[%emt 0:00:30]} Rc8 {[%emt 0:00:04]} 42. Ne1 {[%emt 0:00:30]} Kc6 {[%emt 0:00:09]} 43. Kf3 {[%emt 0:05:30]} Kb5 {[%emt 0:00:12]} 44. Nd3 {[%emt 0:05:04]} Kc4 {[%emt 0:01:06]} 45. Ke2 {[%emt 0:00:43]} Kb3 {[%emt 0:00:57]} 46. f4 {[%emt 0:01:07]} Rh8 {[%emt 0:01:19]} 47. Bc3 {[%emt 0:00:57]} Rxh3 {[%emt 0:00:26]} 48. Bd2 {[%emt 0:00:30]} Rxd3 {[%emt 0:01:57]} 49. Kxd3 {[%emt 0:00:30]} Kxb2 {[%emt 0:00:00]} 0-1

[Event "1st Sivas Buruciye Open 2019"]
[Site "Sivas"]
[Date "2019.08.20"]
[Round "3"]
[White "Samli, Ibrahim"]
[Black "Ercan, Mehmet Fahri"]
[Result "0-1"]
[ECO "B56"]
[WhiteElo "1655"]
[BlackElo "1854"]
[Annotator "NA"]
[PlyCount "76"]
[EventDate "2019.08.19"]
[EventType "swiss"]
[EventCountry "TUR"]
[SourceTitle "playchess.com"]
[Source "ChessBase"]
[SourceQuality "1"]
[TimeControl "5400+30"]

1. e4 {[%emt 0:00:30]} c5 {[%emt 0:12:30]} 2. Nf3 {[%emt 0:00:30]} d6 {[%emt 0:00:30]} 3. d4 {[%emt 0:00:30]} cxd4 {[%emt 0:00:30]} 4. Nxd4 {[%emt 0:00:30]} Nf6 {[%emt 0:00:00]} 5. Nc3 {[%emt 0:00:00]} Bd7 {[%emt 0:01:00]} 6. Bc4 {[%emt 0:04:00]} Qc7 {[%emt 0:01:30]} 7. Bb3 {[%emt 0:00:00]} a6 {[%emt 0:00:30]} 8. Bg5 {[%emt 0:02:00]} e6 {[%emt 0:00:30]} 9. Bxf6 {[%emt 0:01:30]} gxf6 {[%emt 0:00:30]} 10. Qh5 {[%emt 0:02:30]} Qc5 {[%emt 0:02:30]} 11. Qxc5 {[%emt 0:03:30]} dxc5 {[%emt 0:00:30]} 12. Nf3 {[%emt 0:01:30]} b5 {[%emt 0:01:30]} 13. a3 {[%emt 0:01:30]} Bc6 {[%emt 0:04:30]} 14. Nd2 {[%emt 0:01:30]} Nd7 {[%emt 0:02:30]} 15. Ne2 {[%emt 0:02:30]} c4 {[%emt 0:01:30]} 16. Ba2 {[%emt 0:00:30]} Nc5 {[%emt 0:00:00]} 17. Nc3 {[%emt 0:01:30]} Bh6 {[%emt 0:02:00]} 18. f3 {[%emt 0:00:30]} Rg8 {[%emt 0:01:30]} 19. g3 {[%emt 0:01:30]} O-O-O {[%emt 0:00:30]} 20. O-O-O {[%emt 0:02:30]} f5 {[%emt 0:08:30]} 21. Rhe1 {[%emt 0:02:30]} fxe4 {[%emt 0:02:30]} 22. Ncxe4 {[%emt 0:03:30]} Nxe4 {[%emt 0:00:30]} 23. fxe4 {[%emt 0:00:30]} Rd4 {[%emt 0:00:30]} 24. c3 {[%emt 0:03:30]} Rxd2 {[%emt 0:02:30]} 25. Rxd2 {[%emt 0:01:30]} Rd8 {[%emt 0:00:30]} 26. Ree2 {[%emt 0:00:30]} Rxd2 {[%emt 0:00:00]} 27. Rxd2 {[%emt 0:00:30]} Bxe4 {[%emt 0:00:00]} 28. b3 {[%emt 0:02:30]} Bd3 {[%emt 0:02:30]} 29. Kd1 {[%emt 0:09:30]} Bxd2 {[%emt 0:00:30]} 30. Kxd2 {[%emt 0:00:00]} e5 {[%emt 0:00:30]} 31. a4 {[%emt 0:15:00]} Kd7 {[%emt 0:00:30]} 32. axb5 {[%emt 0:07:30]} axb5 {[%emt 0:00:30]} 33. bxc4 {[%emt 0:00:30]} bxc4 {[%emt 0:00:30]} 34. Kc1 {[%emt 0:08:30]} Ke6 {[%emt 0:01:30]} 35. Bb1 {[%emt 0:01:30]} Bxb1 {[%emt 0:01:30]} 36. Kxb1 {[%emt 0:00:30]} Kf5 {[%emt 0:00:00]} 37. Kc2 {[%emt 0:00:30]} Kg4 {[%emt 0:00:00]} 38. Kd2 {[%emt 0:00:30]} Kf3 {[%emt 0:00:30]} 0-1

[Event "1st Sivas Buruciye Open 2019"]
[Site "Sivas"]
[Date "2019.08.20"]
[Round "3"]
[White "Erdogan, Kayra"]
[Black "Akbayir, Eymen"]
[Result "1/2-1/2"]
[ECO "C50"]
[WhiteElo "1119"]
[BlackElo "1108"]
[Annotator "NA"]
[PlyCount "77"]
[EventDate "2019.08.19"]
[EventType "swiss"]
[EventCountry "TUR"]
[SourceTitle "playchess.com"]
[Source "ChessBase"]
[SourceQuality "1"]
[TimeControl "5400+30"]

1. e4 {[%emt 0:00:30]} e5 {[%emt 0:01:30]} 2. Nf3 {[%emt 0:00:00]} Nc6 {[%emt 0:00:30]} 3. Bc4 {[%emt 0:00:00]} Bc5 {[%emt 0:00:30]} 4. O-O {[%emt 0:00:00]} d6 {[%emt 0:01:30]} 5. h3 {[%emt 0:00:00]} Nf6 {[%emt 0:00:30]} 6. Re1 {[%emt 0:00:30]} O-O {[%emt 0:00:30]} 7. c3 {[%emt 0:00:00]} h6 {[%emt 0:02:30]} 8. d4 {[%emt 0:00:00]} exd4 {[%emt 0:00:30]} 9. cxd4 {[%emt 0:00:30]} Bb4 {[%emt 0:00:30]} 10. Nc3 {[%emt 0:00:30]} Bxc3 {[%emt 0:01:30]} 11. bxc3 {[%emt 0:00:30]} d5 {[%emt 0:01:30]} 12. exd5 {[%emt 0:01:30]} Nxd5 {[%emt 0:06:30]} 13. Qc2 {[%emt 0:00:30]} Nf6 {[%emt 0:00:30]} 14. Ba3 {[%emt 0:01:30]} Re8 {[%emt 0:03:30]} 15. Rxe8+ {[%emt 0:10:30]} Qxe8 {[%emt 0:04:30]} 16. Re1 {[%emt 0:00:30]} Qd7 {[%emt 0:01:30]} 17. Ne5 {[%emt 0:02:30]} Nxe5 {[%emt 0:02:30]} 18. Rxe5 {[%emt 0:00:30]} Qc6 {[%emt 0:13:30]} 19. Qb3 {[%emt 0:00:30]} Qb6 {[%emt 0:10:30]} 20. Bxf7+ {[%emt 0:01:30]} Kh8 {[%emt 0:00:30]} 21. Rb5 {[%emt 0:00:30]} Qa6 {[%emt 0:01:30]} 22. Re5 {[%emt 0:12:30]} Qb6 {[%emt 0:02:30]} 23. Qxb6 {[%emt 0:00:30]} axb6 {[%emt 0:00:30]} 24. Bb4 {[%emt 0:00:30]} Bd7 {[%emt 0:00:30]} 25. Kf1 {[%emt 0:01:30]} Bc6 {[%emt 0:02:30]} 26. f3 {[%emt 0:01:30]} Rd8 {[%emt 0:00:30]} 27. Re7 {[%emt 0:03:30]} Rd7 {[%emt 0:01:30]} 28. Rxd7 {[%emt 0:02:30]} Bxd7 {[%emt 0:00:30]} 29. c4 {[%emt 0:00:30]} g5 {[%emt 0:02:30]} 30. Bf8 {[%emt 0:02:30]} Kh7 {[%emt 0:01:30]} 31. d5 {[%emt 0:01:30]} Bf5 {[%emt 0:05:30]} 32. Ke2 {[%emt 0:00:30]} Bb1 {[%emt 0:02:30]} 33. a3 {[%emt 0:00:30]} Ba2 {[%emt 0:00:30]} 34. Kd3 {[%emt 0:01:30]} Bb1+ {[%emt 0:01:30]} 35. Kc3 {[%emt 0:00:30]} Bf5 {[%emt 0:00:00]} 36. Kd4 {[%emt 0:01:30]} Bc2 {[%emt 0:03:00]} 37. c5 {[%emt 0:06:30]} bxc5+ {[%emt 0:02:30]} 38. Bxc5 {[%emt 0:00:30]} Bd1 {[%emt 0:02:30]} 39. Be7 {[%emt 0:01:30]} 1/2-1/2

[Event "1st Sivas Buruciye Open 2019"]
[Site "Sivas"]
[Date "2019.08.20"]
[Round "3"]
[White "Eryilmaz, Zubeyr Kerem"]
[Black "Capraz, Arda"]
[Result "0-1"]
[ECO "B13"]
[WhiteElo "1032"]
[BlackElo "1384"]
[Annotator "NA"]
[PlyCount "46"]
[EventDate "2019.08.19"]
[EventType "swiss"]
[EventCountry "TUR"]
[SourceTitle "playchess.com"]
[Source "ChessBase"]
[SourceQuality "1"]
[TimeControl "5400+30"]

1. Nf3 {[%emt 0:00:30]} d5 {[%emt 0:00:30]} 2. c4 {[%emt 0:00:30]} e6 {[%emt 0:00:30]} 3. e3 {[%emt 0:00:00]} Nf6 {[%emt 0:00:30]} 4. a3 {[%emt 0:00:00]} c5 {[%emt 0:00:30]} 5. d4 {[%emt 0:00:30]} cxd4 {[%emt 0:05:30]} 6. exd4 {[%emt 0:01:30]} dxc4 {[%emt 0:03:30]} 7. Bxc4 {[%emt 0:00:30]} Nc6 {[%emt 0:01:30]} 8. Nc3 {[%emt 0:00:30]} a6 {[%emt 0:03:30]} 9. Be3 {[%emt 0:00:30]} b5 {[%emt 0:03:30]} 10. Nxb5 {[%emt 0:08:30]} axb5 {[%emt 0:00:30]} 11. Bxb5 {[%emt 0:00:30]} Qa5+ {[%emt 0:01:30]} 12. Qd2 {[%emt 0:00:00]} Qxb5 {[%emt 0:00:00]} 13. Rc1 {[%emt 0:00:00]} Bd7 {[%emt 0:00:00]} 14. Bf4 {[%emt 0:00:30]} Nd5 {[%emt 0:01:30]} 15. Bg3 {[%emt 0:00:30]} Be7 {[%emt 0:00:30]} 16. Ne5 {[%emt 0:01:30]} Nxe5 {[%emt 0:07:30]} 17. Bxe5 {[%emt 0:00:30]} Nf6 {[%emt 0:01:30]} 18. h4 {[%emt 0:01:30]} Rc8 {[%emt 0:04:30]} 19. Rxc8+ {[%emt 0:02:30]} Bxc8 {[%emt 0:00:00]} 20. Rh3 {[%emt 0:00:30]} Ba6 {[%emt 0:00:00]} 21. Kd1 {[%emt 0:01:30]} Qf1+ {[%emt 0:00:30]} 22. Kc2 {[%emt 0:00:00]} O-O {[%emt 0:13:30]} 23. f3 {[%emt 0:03:00]} Rc8+ {[%emt 0:00:30]} 0-1

[Event "1st Sivas Buruciye Open 2019"]
[Site "Sivas"]
[Date "2019.08.21"]
[Round "4"]
[White "Khvadagiani, Nika"]
[Black "Var, Sefa"]
[Result "0-1"]
[ECO "D48"]
[WhiteElo "1880"]
[BlackElo "1698"]
[Annotator "NA"]
[PlyCount "62"]
[EventDate "2019.08.19"]
[EventType "swiss"]
[EventCountry "TUR"]
[SourceTitle "playchess.com"]
[Source "ChessBase"]
[SourceQuality "1"]
[TimeControl "5400+30"]

1. Nf3 {[%emt 0:00:30]} d5 {[%emt 0:09:30]} 2. e3 {[%emt 0:01:30]} Nf6 {[%emt 0:01:30]} 3. c4 {[%emt 0:00:30]} c6 {[%emt 0:03:30]} 4. Nc3 {[%emt 0:00:30]} e6 {[%emt 0:01:30]} 5. d4 {[%emt 0:02:30]} Nbd7 {[%emt 0:00:30]} 6. Bd3 {[%emt 0:00:00]} dxc4 {[%emt 0:00:00]} 7. Bxc4 {[%emt 0:00:00]} b5 {[%emt 0:00:00]} 8. Bd3 {[%emt 0:00:30]} Bb7 {[%emt 0:00:30]} 9. O-O {[%emt 0:00:00]} a6 {[%emt 0:00:00]} 10. a3 {[%emt 0:03:00]} c5 $11 {[%emt 0:03:00]} 11. b3 {[%emt 0:03:30]} Bd6 {[%emt 0:13:30]} 12. Bb2 {[%emt 0:00:30]} O-O {[%emt 0:02:30]} 13. Qe2 {[%emt 0:03:30]} Rc8 {[%emt 0:04:30]} 14. Rfd1 {[%emt 0:03:30]} Qe7 {[%emt 0:00:30]} 15. Nb1 {[%emt 0:26:30]} e5 {[%emt 0:09:30]} 16. dxe5 {[%emt 0:04:30]} Nxe5 {[%emt 0:01:30]} 17. Nxe5 {[%emt 0:00:30]} Bxe5 {[%emt 0:00:30]} 18. a4 {[%emt 0:00:30]} c4 {[%emt 0:03:30]} 19. bxc4 {[%emt 0:06:30]} bxc4 {[%emt 0:09:30]} 20. Bf5 {[%emt 0:00:30]} Rc5 {[%emt 0:06:30]} 21. Bh3 {[%emt 0:21:30]} c3 {[%emt 0:01:30]} 22. Ba3 {[%emt 0:00:30]} c2 {[%emt 0:00:00]} 23. Rc1 {[%emt 0:14:12]} cxb1=Q {[%emt 0:02:00]} 24. Rcxb1 {[%emt 0:05:12]} Bxa1 {[%emt 0:01:30]} 25. Rxa1 {[%emt 0:00:58]} Rd8 {[%emt 0:03:30]} 26. Qb2 {[%emt 0:00:59]} Qe5 {[%emt 0:00:30]} 27. Qa2 {[%emt 0:00:37]} Rcd5 {[%emt 0:01:30]} 28. g3 {[%emt 0:00:15]} Rd1+ {[%emt 0:00:30]} 29. Rxd1 {[%emt 0:00:30]} Rxd1+ {[%emt 0:00:00]} 30. Bf1 {[%emt 0:00:00]} Qe4 {[%emt 0:01:00]} 31. f3 {[%emt 0:00:17]} Qxf3 {[%emt 0:00:00]} 0-1

[Event "1st Sivas Buruciye Open 2019"]
[Site "Sivas"]
[Date "2019.08.21"]
[Round "4"]
[White "Ercan, Mehmet Fahri"]
[Black "Karahan, Anil"]
[Result "1/2-1/2"]
[ECO "B38"]
[WhiteElo "1854"]
[BlackElo "1721"]
[Annotator "NA"]
[PlyCount "113"]
[EventDate "2019.08.19"]
[EventType "swiss"]
[EventCountry "TUR"]
[SourceTitle "playchess.com"]
[Source "ChessBase"]
[SourceQuality "1"]
[TimeControl "5400+30"]

1. d4 {[%emt 0:18:30]} Nf6 {[%emt 0:00:30]} 2. c4 {[%emt 0:00:30]} g6 {[%emt 0:00:00]} 3. Nc3 {[%emt 0:00:30]} Bg7 {[%emt 0:00:00]} 4. e4 {[%emt 0:01:30]} d6 {[%emt 0:00:00]} 5. f3 {[%emt 0:02:30]} O-O {[%emt 0:00:00]} 6. Be3 {[%emt 0:00:30]} c5 {[%emt 0:00:30]} 7. Nge2 {[%emt 0:00:30]} Nc6 {[%emt 0:00:30]} 8. Qd2 {[%emt 0:00:00]} Nxd4 {[%emt 0:04:30]} 9. Nxd4 {[%emt 0:00:00]} cxd4 {[%emt 0:00:30]} 10. Bxd4 {[%emt 0:00:30]} Nd7 {[%emt 0:01:30] B38: Sicilian: Maroczy Bind with 5...Bg7 and 7...0-0} (10... Be6 11. Be2 a5 12. O-O a4 13. Rac1 Qa5 14. Rc2 Rfc8 15. b3 axb3 16. axb3 Nd7 17. Be3 Qb4 18. Rb1 Nc5 19. Nb5 Qxd2 20. Rxd2 Bd7 21. Kf2 f5 22. exf5 Bxf5 23. Rh1 Nxb3 24. Rdd1 Ra2 25. c5 dxc5 26. g4 Be6 27. Rhe1 Bc4 {0-1 (27) Sargissian,G (2702)-Li,C (2751) Huaian 2016}) 11. Bxg7 {[%emt 0:10:30]} Kxg7 {[%emt 0:00:30]} 12. Qd4+ {[%emt 0:00:30]} Kg8 {[%emt 0:00:30]} 13. O-O-O {[%emt 0:00:30]} Qa5 {[%emt 0:00:30]} 14. Nd5 {[%emt 0:04:30]} Re8 {[%emt 0:05:30]} 15. Kb1 {[%emt 0:00:30]} Ne5 $146 {[%emt 0:04:30]} ({Predecessor:} 15... Rb8 16. h4 Qc5 17. Qd2 Nf8 18. h5 {1-0 (29) Magem Badals,J (2560)-Vila Dupla,A (2290) Spain 1995}) 16. Be2 {[%emt 0:01:30]} Be6 {[%emt 0:14:30]} 17. g4 {[%emt 0:11:30]} Bxd5 {[%emt 0:03:30]} 18. cxd5 {[%emt 0:05:30]} Qb6 {[%emt 0:05:30]} 19. Qxb6 {[%emt 0:01:30]} axb6 {[%emt 0:00:00]} 20. Rc1 {[%emt 0:00:30]} Rec8 {[%emt 0:00:00]} 21. Rxc8+ {[%emt 0:00:00]} Rxc8 {[%emt 0:00:30]} 22. Rc1 {[%emt 0:00:00]} Rxc1+ {[%emt 0:01:30]} 23. Kxc1 {[%emt 0:00:00]} g5 {[%emt 0:00:00]} 24. Kd2 {[%emt 0:02:00]} Kf8 {[%emt 0:02:00]} 25. Ke3 {[%emt 0:00:30]} Ng6 {[%emt 0:00:30]} 26. Bb5 {[%emt 0:00:30]} Ne5 {[%emt 0:02:30]} 27. h3 {[%emt 0:00:30]} Ng6 {[%emt 0:14:30]} 28. Bd7 {[%emt 0:12:30]} Nf4 {[%emt 0:00:30]} 29. Bc8 {[%emt 0:01:30]} Nxh3 {[%emt 0:00:30]} 30. Bxb7 {[%emt 0:00:00]} Ke8 {[%emt 0:00:00]} 31. b4 {[%emt 0:10:29]} Kd8 {[%emt 0:01:00]} 32. Ba6 {[%emt 0:01:38]} Kc7 {[%emt 0:03:30]} 33. a4 {[%emt 0:01:30]} h6 {[%emt 0:03:30]} 34. Bb5 {[%emt 0:02:02]} Nf4 {[%emt 0:01:30]} 35. Kd4 {[%emt 0:00:15]} Ng6 {[%emt 0:01:30]} 36. Be8 {[%emt 0:01:15]} Ne5 {[%emt 0:00:30]} 37. Ke3 {[%emt 0:00:18]} Kd8 {[%emt 0:05:30]} 38. Bb5 {[%emt 0:00:23]} Kc7 {[%emt 0:01:30]} 39. Be2 {[%emt 0:01:22]} Ng6 {[%emt 0:00:00]} 40. Kd4 {[%emt 0:00:28]} Ne5 {[%emt 0:00:00]} 41. Kc3 {[%emt 0:00:46]} Kb7 {[%emt 0:01:30]} 42. a5 {[%emt 0:00:19]} bxa5 {[%emt 0:04:30]} 43. bxa5 {[%emt 0:00:01]} Nd7 {[%emt 0:02:08]} 44. Kb4 {[%emt 0:01:51]} Nc5 {[%emt 0:03:05]} 45. Bb5 {[%emt 0:00:17]} Ka7 {[%emt 0:00:50]} 46. Be8 {[%emt 0:00:42]} Nd3+ {[%emt 0:13:39]} 47. Ka4 {[%emt 0:00:10]} Ne5 {[%emt 0:00:24]} 48. Kb5 {[%emt 0:00:38]} f6 {[%emt 0:00:00]} 49. Bh5 {[%emt 0:00:21]} Kb7 {[%emt 0:00:40]} 50. a6+ {[%emt 0:01:06]} Ka7 {[%emt 0:00:52]} 51. Be8 {[%emt 0:00:22]} Nxf3 {[%emt 0:00:05]} 52. Bd7 {[%emt 0:00:14]} Nd4+ {[%emt 0:01:07]} 53. Kc4 {[%emt 0:01:18]} Nf3 {[%emt 0:00:31]} 54. Kb5 {[%emt 0:00:15]} Nd4+ {[%emt 0:00:28]} 55. Kc4 {[%emt 0:00:51]} Nf3 {[%emt 0:00:08]} 56. Kb5 {[%emt 0:00:00]} Nd4+ $11 {[%emt 0:03:29]} 57. Kc4 {[%emt 0:00:00]} 1/2-1/2

[Event "1st Sivas Buruciye Open 2019"]
[Site "Sivas"]
[Date "2019.08.21"]
[Round "4"]
[White "Sabahi, Ali Can"]
[Black "Kiziltas, Inanc Vefa"]
[Result "1-0"]
[ECO "E08"]
[WhiteElo "1825"]
[BlackElo "1826"]
[Annotator "NA"]
[PlyCount "95"]
[EventDate "2019.08.19"]
[EventType "swiss"]
[EventCountry "TUR"]
[SourceTitle "playchess.com"]
[Source "ChessBase"]
[SourceQuality "1"]
[TimeControl "5400+30"]

1. d4 {[%emt 0:00:30]} Nf6 {[%emt 0:02:30]} 2. c4 {[%emt 0:00:30]} e6 {[%emt 0:00:00]} 3. g3 {[%emt 0:00:30]} d5 {[%emt 0:00:00]} 4. Nf3 {[%emt 0:00:00]} Be7 {[%emt 0:00:30]} 5. Bg2 {[%emt 0:00:00]} O-O {[%emt 0:00:30]} 6. O-O {[%emt 0:00:30]} c6 {[%emt 0:00:00]} 7. Qc2 {[%emt 0:01:30]} b6 {[%emt 0:03:00]} 8. Rd1 {[%emt 0:00:30]} Nbd7 {[%emt 0:02:30]} 9. b3 {[%emt 0:00:30]} Bb7 {[%emt 0:00:30]} 10. Nc3 {[%emt 0:00:00]} Rc8 {[%emt 0:00:30]} 11. e4 {[%emt 0:01:00]} c5 {[%emt 0:04:30]} 12. exd5 {[%emt 0:02:30]} exd5 {[%emt 0:02:30]} 13. Ne1 {[%emt 0:09:30]} cxd4 {[%emt 0:17:30]} 14. Rxd4 {[%emt 0:00:30]} Bc5 {[%emt 0:00:30]} 15. Rd1 {[%emt 0:02:30]} Ng4 {[%emt 0:01:30]} 16. Nd3 $11 {[%emt 0:06:30]} Qf6 {[%emt 0:11:30]} 17. Nxc5 {[%emt 0:03:30]} Nxc5 {[%emt 0:04:30]} 18. Ba3 {[%emt 0:21:30]} Rfd8 {[%emt 0:21:30]} 19. Nxd5 {[%emt 0:07:30]} Bxd5 {[%emt 0:03:30]} 20. Bxd5 {[%emt 0:00:30]} Nxb3 {[%emt 0:02:30]} 21. Bxf7+ {[%emt 0:11:30]} Qxf7 {[%emt 0:04:44]} 22. axb3 {[%emt 0:00:00]} Ne5 {[%emt 0:02:37]} 23. Qe4 {[%emt 0:02:00]} Nf3+ {[%emt 0:00:26]} 24. Kg2 {[%emt 0:01:30]} Ng5 {[%emt 0:02:51]} 25. Rxd8+ {[%emt 0:05:30]} Rxd8 {[%emt 0:00:01]} 26. Qc6 {[%emt 0:12:32]} Qf5 {[%emt 0:00:56]} 27. Re1 {[%emt 0:00:22]} h6 {[%emt 0:04:47]} 28. Re8+ {[%emt 0:01:05]} Rxe8 {[%emt 0:00:48]} 29. Qxe8+ {[%emt 0:00:05]} Kh7 {[%emt 0:00:00]} 30. Qe3 {[%emt 0:00:11]} Qh3+ {[%emt 0:01:40]} 31. Kg1 {[%emt 0:00:01]} Qg4 {[%emt 0:00:08]} 32. Be7 {[%emt 0:03:54]} Nf3+ {[%emt 0:02:45]} 33. Kg2 {[%emt 0:00:09]} Nd4 {[%emt 0:00:00]} 34. f3 {[%emt 0:01:26]} Qd7 {[%emt 0:00:53]} 35. Ba3 {[%emt 0:01:40]} Nf5 {[%emt 0:01:00]} 36. Qe2 {[%emt 0:00:28]} h5 {[%emt 0:02:29]} 37. Bb2 {[%emt 0:00:17]} Qd6 {[%emt 0:01:05]} 38. Qc2 {[%emt 0:01:00]} g6 {[%emt 0:01:08]} 39. Qc3 {[%emt 0:00:18]} Qd8 {[%emt 0:00:33]} 40. g4 {[%emt 0:00:54]} Nh4+ {[%emt 0:00:38]} 41. Kh3 {[%emt 0:01:22]} hxg4+ {[%emt 0:00:02]} 42. fxg4 {[%emt 0:00:00]} Qf8 {[%emt 0:00:53]} 43. Kxh4 {[%emt 0:00:00]} g5+ {[%emt 0:00:22]} 44. Kxg5 {[%emt 0:00:35]} Qh6+ {[%emt 0:01:04]} 45. Kf5 {[%emt 0:00:07]} Qg6+ {[%emt 0:00:08]} 46. Kf4 {[%emt 0:00:30]} Qd6+ {[%emt 0:00:07]} 47. Kf3 {[%emt 0:00:00]} Qc6+ {[%emt 0:00:31]} 48. Kf2 {[%emt 0:00:19]} 1-0